Cogmind - Beta 16 @@@ ROGUE MODE // 2026.01.18 @ 21:34:26 Player: Ez3 Result: Destroyed by S-27 Virus with Autogun Performance ------------- Evolutions (3) 1500 Regions Visited (6) 1200 Robots Destroyed (43) 215 Value Destroyed (1081) 1081 Prototype IDs (3) 60 Alien Tech Used (0) 0 Bonus (0) 0 TOTAL SCORE: 4056 Bonus ------- None Cogmind --------- Core Integrity 0/700 Matter 294/300 Energy 22/100 System Corruption 0% Temperature Cool (0) Movement Core (100) Ox1 Location -7/Factory Parts ------- > --- POWER (3) -------- (None) > --- PROPULSION (2) --- (None) > --- UTILITY (5) ------ Terrain Scan Processor > --- WEAPON (3) ------- Ion Cannon > --- INVENTORY (5) ---- Small Storage Unit Improved Terrain Scanner Improved Dynamic Insulation System Peak State ------------ > --- POWER ------------ Improved Ion Engine Reinforced Ion Engine Light Deuterium Engine > --- PROPULSION ------- Aluminum Leg Titanium Leg > --- UTILITY ---------- Large Storage Unit Improved Terrain Scanner Terrain Scan Processor Field Recycling Unit > --- WEAPON ----------- Advanced EMP Blaster Advanced EMP Blaster > --- INVENTORY -------- Aluminum Leg Carbon-fiber Leg Carbon-fiber Leg Wheel Compact Wheel Compact Wheel Small Storage Unit Improved Terrain Scanner Small Laser Assault Rifle Enhanced Autogun Datajack [Rating: 29] Favorites ----------- Power Improved Ion Engine Engine Improved Ion Engine Propulsion Aluminum Leg Leg Aluminum Leg Wheel Compact Wheel Utility Large Storage Unit Device Improved Terrain Scanner Storage Large Storage Unit Processor Terrain Scan Processor Hackware Hacking Suite Protection Hardened Light Armor Plating Weapon Advanced EMP Blaster Energy Gun Small Laser Energy Cannon Ion Cannon Ballistic Gun Assault Rifle Ballistic Cannon Improved Light Cannon Launcher Advanced EMP Blaster Impact Weapon Hammer Special Melee Weapon Datajack Build | -11 -10 -9 -8 -7 -7 -7 ------- Run | Yrd Mat Mat Mat Fac Was Fac Slots Evolved 6 | . . 2 2 2 . . Power 2 | . . 2 . . . . Propulsion . | . . . . . . . Utility 3 | . . . 2 1 . . Weapon 1 | . . . . 1 . . Parts Attached 61 | 7 9 17 13 5 3 7 Power 10 | 1 1 4 2 . . 2 Engine 10 | 1 1 4 2 . . 2 Core . | . . . . . . . Reactor . | . . . . . . . Propulsion 18 | 2 5 3 2 2 2 2 Treads . | . . . . . . . Leg 7 | . 2 3 2 . . . Wheel 11 | 2 3 . . 2 2 2 Hover . | . . . . . . . Flight . | . . . . . . . Utility 15 | 2 2 2 5 2 1 1 Device 8 | 1 . 1 3 2 1 . Storage 3 | 1 1 . . . . 1 Processor 1 | . . . 1 . . . Hackware 1 | . 1 . . . . . Protection 2 | . . 1 1 . . . Artifact . | . . . . . . . Weapon 18 | 2 1 8 4 1 . 2 Energy Gun 3 | . . 1 . 1 . 1 Energy Cannon 1 | . . . . . . 1 Ballistic Gun 7 | 2 . 3 2 . . . Ballistic Cannon 1 | . . 1 . . . . Launcher 2 | . . . 2 . . . Special Weapon . | . . . . . . . Impact Weapon 2 | . . 2 . . . . Slashing Weapon . | . . . . . . . Piercing Weapon . | . . . . . . . Special Melee Weapon 2 | . 1 1 . . . . Unidentified Prototypes 3 | . . . 2 1 . . Parts Lost 45 | . 11 7 15 . 5 7 Power 9 | . 2 . 5 . . 2 Propulsion 15 | . 5 3 3 . 1 3 Utility 8 | . 1 1 3 . 2 1 Weapon 13 | . 3 3 4 . 2 1 Highest Loss Streak 11 | . 11 3 7 . 3 7 To Critical Strikes 2 | . 1 . . . . 1 Average Backups 8 | 4 9 6 12 7 8 3 Power . | . . . 1 . . . Propulsion 2 | 3 4 1 3 3 2 . Utility 2 | . 4 3 2 1 2 3 Weapon 2 | . . 1 4 1 2 . Tool/Special . | . . . . . . . Unused Backups 8 | 1 . . 2 . 5 . Power 2 | 1 . . . . 1 . Propulsion 4 | . . . 2 . 2 . Utility 1 | . . . . . 1 . Weapon 1 | . . . . . 1 . Tool/Special . | . . . . . . . Average Slot Usage (%) 80 | . 88 76 96 82 57 23 Engine 16 | . 12 15 24 7 3 . Leg 13 | . . 18 18 . . . Wheel 3 | . 26 . . 14 12 7 Device 13 | . 10 9 17 23 15 . Storage 9 | . 14 11 9 7 3 2 Processor 1 | . . . 1 7 7 7 Protection 2 | . . 1 6 . . . Energy Gun 2 | . . 2 . 6 4 3 Ballistic Gun 6 | . 21 9 2 7 3 . Ballistic Cannon 1 | . . 3 . . . . Launcher 4 | . . . 11 7 3 . Impact Weapon 2 | . . 4 2 . . . Peak Build Rating 29 | 8 8 16 29 27 29 16 Average Rating 16 | 6 7 11 25 23 19 11 On Entrance 11 | . 8 6 15 17 23 11 Avg Prop Armor Cover (%) . | . . . . . . . Naked Turns . | . . . . . . . Heaviest Build 64 | 12 27 53 64 45 45 6 Greatest Support 32 | 20 26 20 27 32 32 32 Greatest Overweight (x) 12 | . 2 12 3 1 1 1 Average Overweight (x) 1 | . . 1 2 1 . . Largest Inventory Capacity 15 | 8 15 15 15 15 15 5 Average Capacity 13 | 7 14 15 15 15 10 5 Most Carried 15 | 8 12 12 15 11 15 5 Average Carried 9 | 4 9 6 12 7 9 3 Final Capacity 15 | 8 15 15 15 15 5 5 Final Carried 12 | 8 4 12 10 11 4 3 Class Distribution -------------------- 65% | Mutant 24% | Scavenger-Mutant 9% | Scavenger-Skirmisher Dominant Class ---------------- Mutant | -10/Materials Mutant | -9/Materials Mutant | -8/Materials Scavenger-Skirmisher | -7/Factory Scavenger-Skirmisher | -7/Waste Mutant | -7/Factory Resources | -11 -10 -9 -8 -7 -7 -7 ----------- Run | Yrd Mat Mat Mat Fac Was Fac Matter Collected 1409 | 382 12 454 339 . . 222 Remotely 273 | 261 12 . . . . . Salvage Created 1520 | 189 12 508 665 . . 146 Parts 87 | 16 4 32 31 . . 4 Haulers Intercepted . | . . . . . . . Recyclers Shooed . | . . . . . . . Parts Field Recycled . | . . . . . . . Retrieved Matter . | . . . . . . . Parts Self-Destructed . | . . . . . . . Prevented . | . . . . . . . Parts Restored . | . . . . . . . Kills | -11 -10 -9 -8 -7 -7 -7 ------- Run | Yrd Mat Mat Mat Fac Was Fac Combat Hostiles Destroyed 22 | . . 11 10 . . 1 Guns 8 | . . 7 1 . . . Cannons 4 | . . 3 . . . 1 AOE 6 | . . . 6 . . . Classes Destroyed 11 | 3 1 3 4 . . . Worker 5 | 2 . . 1 . . 2 Builder 2 | . . . 2 . . . Tunneler 5 | 4 . . 1 . . . Recycler 3 | 1 . . 1 . . 1 Operator 3 | . 1 1 1 . . . Watcher 3 | . . 2 1 . . . Swarmer 3 | . . . 2 . . 1 Grunt 11 | . . 7 4 . . . Duelist 1 | . . . 1 . . . Sentry 6 | . . 4 2 . . . Hunter 1 | . . . 1 . . . Best Kill Streak 6 | 6 1 4 6 . . 2 Combat Bots Only 4 | . . 4 3 . . 1 Max Kills in Single Turn 3 | 1 1 1 3 . . 1 Gunslinging . | . . . . . . . Exploded 2 | . . . 2 . . . Melee . | . . . . . . . Uniques/NPCs Destroyed . | . . . . . . . Combat | -11 -10 -9 -8 -7 -7 -7 -------- Run | Yrd Mat Mat Mat Fac Was Fac Hostile Shots Fired 566 | . 150 159 146 . 5 106 Missed 169 | . 53 47 39 . . 30 Hits 397 | . 97 112 107 . 5 76 Melee 10 | . . . 5 . 5 . Projectile 387 | . 97 112 102 . . 76 Critical Strikes 16 | . 1 6 3 . 3 3 Damage Taken 5423 | . 783 1573 1727 . 198 1142 Core 1576 | . 230 380 249 . 134 583 Absorbed by Shields 241 | . . . 241 . . . Core Remaining (%) 41 | 100 8 5 54 . . . Volleys Fired 175 | 28 16 56 27 19 2 27 Largest 3 | 2 2 2 2 2 3 1 Hottest 96 | 40 40 60 72 60 96 69 Shots Fired 273 | 56 28 81 37 38 6 27 Gun 222 | 56 28 57 21 38 4 18 Cannon 33 | . . 24 . . . 9 Launcher 18 | . . . 16 . 2 . Special . | . . . . . . . Kinetic 191 | 56 28 65 21 19 2 . Thermal 64 | . . 16 . 19 2 27 Explosive . | . . . . . . . Electromagnetic 18 | . . . 16 . 2 . Robot Hit Streak 9 | 6 6 8 6 . 9 7 Robot Miss Streak 4 | 3 2 4 2 . 2 3 Penetration Max . | . . . . . . . Secondary Targets 1 | . . . 1 . . . Max Gunslinging Chain 1 | . . . 1 . . . Shots Hit Robots 143 | 30 5 56 29 . 4 19 Core Hits 58 | 11 2 21 21 . . 3 Critical Kills . | . . . . . . . Critical Parts Destroyed 2 | . . 2 . . . . Critical Strikes 3 | . . 2 . . . 1 Burn 1 | . . . . . . 1 Smash 2 | . . 2 . . . . Melee Attacks 30 | . . 14 16 . . . Impact 27 | . . 12 15 . . . Slashing . | . . . . . . . Piercing . | . . . . . . . Sneak Attacks 2 | . . 2 . . . . Combat Hostiles . | . . . . . . . Follow-up Attacks 1 | . . 1 . . . . Damage Inflicted 2956 | 307 84 817 1335 . 38 375 Guns 1352 | 307 84 474 260 . 35 192 Cannons 426 | . . 243 . . . 183 Explosions 991 | . . . 988 . 3 . Melee 168 | . . 100 68 . . . Ramming 19 | . . . 19 . . . Kinetic 1247 | 307 84 583 260 . 13 . Thermal 695 | . . 134 164 . 22 375 Explosive . | . . . . . . . Electromagnetic 827 | . . . 824 . 3 . Impact 168 | . . 100 68 . . . Slashing . | . . . . . . . Piercing . | . . . . . . . Highest Corruption 3 | . . . 3 . . . Average Corruption 2 | . . . 2 . . . Corruption Purged . | . . . . . . . Corruption Blocked . | . . . . . . . Effects 10 | . . . 10 . . . Message Errors 3 | . . . 3 . . . Matter Fused 2 | . . . 2 . . . Heat Flow Errors 1 | . . . 1 . . . Energy Discharges 2 | . . . 2 . . . Data Loss (major) 2 | . . . 2 . . . Overload Shots . | . . . . . . . Overflow Damage 93 | . . 39 35 . . 19 Projectiles 23 | . . 4 . . . 19 Explosions 17 | . . . 17 . . . Melee 53 | . . 35 18 . . . Knockbacks 5 | . . 3 2 . . . Impact 2 | . . . 2 . . . Kinetic 3 | . . 3 . . . . Secondary . | . . . . . . . Self-Inflicted Damage 218 | . . . 218 . . . Shots 11 | . . . 11 . . . Rammed 1 | . . . 1 . . . Targets Rammed 7 | . . . 7 . . . Kicked 6 | . . . 6 . . . Crushed . | . . . . . . . Highest Temperature 499 | . . 254 499 . 21 . Average Temperature 99 | . . 64 145 . 14 . Received Heat Transfer 1468 | . 12 777 679 . . . Effects 15 | . . 1 14 . . . Shutdowns 5 | . . . 5 . . . Energy Bleed 2 | . . 1 1 . . . Interference 5 | . . . 5 . . . Matter Decay 1 | . . . 1 . . . Damage (minor) 1 | . . . 1 . . . Damage (major) 1 | . . . 1 . . . Siege Activations . | . . . . . . . Martial Activations . | . . . . . . . Shielding Activations . | . . . . . . . Robots Disrupted . | . . . . . . . Combat Hostiles . | . . . . . . . Robots Corrupted 4 | . . 1 3 . . . Combat Hostiles 4 | . . 1 3 . . . Parts Fried 9 | . . 2 7 . . . Impact Corruptions 3 | . . 2 1 . . . Robots Melted . | . . . . . . . Combat Hostiles . | . . . . . . . Parts Melted 1 | . . . . . . 1 Heat Transferred 1290 | . . 300 200 . 50 740 Parts Sabotaged . | . . . . . . . Parts Stolen . | . . . . . . . Parts Stripped . | . . . . . . . Power Chain Reactions 2 | . . . 2 . . . Alert | -11 -10 -9 -8 -7 -7 -7 ------- Run | Yrd Mat Mat Mat Fac Was Fac Maximum Alert Level . | . . . . . . . Low Security (%) 100 | 100 100 100 100 100 100 100 Level 1 . | . . . . . . . Level 2 . | . . . . . . . Level 3 . | . . . . . . . Level 4 . | . . . . . . . Level 5 . | . . . . . . . High Security . | . . . . . . . Max Security . | . . . . . . . Peak Influence 141 | 10 30 71 141 19 . 20 Initial 19 | . . . . 19 . . Average 25 | . 3 16 56 2 . 1 Influence Increases 875 | 35 51 325 425 . . 39 Destroy 0b10 Robot/C 440 | . . 220 200 . . 20 Destroy 0b10 Robot/NC 105 | 35 5 15 35 . . 15 Destroy Leader 116 | . . 64 52 . . . Successful Hack 10 | . . 5 1 . . 4 Disable Machine 75 | . 15 . 60 . . . Destroy Structure 24 | . 1 6 17 . . . Lose Combat Pursuer 105 | . 30 15 60 . . . Influence Decreases 875 | 35 51 325 381 44 . 39 Entered New Map 25 | . . . . 25 . . Time Decay 643 | 35 25 314 231 19 . 19 Lost Part 207 | . 26 11 150 . . 20 Squads Dispatched 8 | . 2 1 4 . . 1 Investigation 3 | . 1 1 1 . . . Extermination . | . . . . . . . Reinforcement 5 | . 1 . 3 . . 1 Assault . | . . . . . . . Garrison . | . . . . . . . Intercept . | . . . . . . . Searches Triggered . | . . . . . . . Construction Impeded 1 | . . . . . . 1 Haulers Reinforced . | . . . . . . . Active Scanning Responses . | . . . . . . . Cargo Convoy Interrupts . | . . . . . . . Stealth | -11 -10 -9 -8 -7 -7 -7 --------- Run | Yrd Mat Mat Mat Fac Was Fac Distress Signals 6 | . 1 3 2 . . . Communications Jammed . | . . . . . . . Distress Signals . | . . . . . . . Times Spotted 64 | . 13 18 22 . 6 5 Peak Tracking Total 10 | . 10 6 6 . 6 5 Tactical Retreats 4 | . 1 1 2 . . . Traps | -11 -10 -9 -8 -7 -7 -7 ------- Run | Yrd Mat Mat Mat Fac Was Fac Traps Triggered 3 | . 1 1 . 1 . . Indirectly . | . . . . . . . Trap Hack Attempts . | . . . . . . . Triggered . | . . . . . . . Disarmed . | . . . . . . . Reprogrammed . | . . . . . . . Reused . | . . . . . . . Traps Extracted . | . . . . . . . Installed . | . . . . . . . Triggered . | . . . . . . . Machines | -11 -10 -9 -8 -7 -7 -7 ---------- Run | Yrd Mat Mat Mat Fac Was Fac Machines Disabled 5 | . 1 . 4 . . . Max in Single Turn 2 | . 1 . 2 . . . Machines Repaired . | . . . . . . . Machines Dismantled . | . . . . . . . Machines Sabotaged . | . . . . . . . Overloaded Fab Kills . | . . . . . . . Hacking | -11 -10 -9 -8 -7 -7 -7 --------- Run | Yrd Mat Mat Mat Fac Was Fac Machines Accessed 8 | . 2 1 3 1 . 1 Terminals 4 | . 2 1 1 . . . Fabricators 1 | . . . . . . 1 Repair Stations 1 | . . . 1 . . . Recycling Units 1 | . . . 1 . . . Scanalyzers 1 | . . . . 1 . . Garrison Access . | . . . . . . . Total Hacks 17 | . 4 2 9 1 . 1 Successful 9 | . 2 1 5 . . 1 Failed 8 | . 2 1 4 1 . . Catastrophic 1 | . . . . 1 . . Database Lockouts . | . . . . . . . Manual 3 | . . . 3 . . . Terminals 9 | . 4 2 3 . . . Fabricators 1 | . . . . . . 1 Repair Stations 2 | . . . 2 . . . Recycling Units 4 | . . . 4 . . . Scanalyzers 1 | . . . . 1 . . Garrison Access . | . . . . . . . Terminal Hacks 3 | . 2 1 . . . . Record 1 | . 1 . . . . . Emergency Access Points 1 | . 1 . . . . . Zone Layout 1 | . . 1 . . . . Fabricator Hacks 1 | . . . . . . 1 Build 1 | . . . . . . 1 Repair Station Hacks 1 | . . . 1 . . . Scan Component 1 | . . . 1 . . . Recycling Unit Hacks 4 | . . . 4 . . . Recycle Component 1 | . . . 1 . . . Process 1 | . . . 1 . . . Report Inventory 1 | . . . 1 . . . Retrieve Matter 1 | . . . 1 . . . Scanalyzer . | . . . . . . . Garrison Access Hacks . | . . . . . . . Unauthorized Hacks . | . . . . . . . Terminals . | . . . . . . . Fabricators . | . . . . . . . Repair Stations . | . . . . . . . Recycling Units . | . . . . . . . Scanalyzers . | . . . . . . . Garrison Access . | . . . . . . . Data Cores Recovered 1 | . . 1 . . . . Used . | . . . . . . . Hacking Detections 7 | . 2 1 3 1 . . Full Trace Events . | . . . . . . . Feedback Events . | . . . . . . . Feedback Blocked . | . . . . . . . Robot Schematics Acquired . | . . . . . . . Robots Built . | . . . . . . . Authchips . | . . . . . . . Time . | . . . . . . . Total Robot Build Rating . | . . . . . . . Part Schematics Acquired . | . . . . . . . Parts Built 2 | . . . . . . 2 Authchips . | . . . . . . . Time 84 | . . . . . . 84 Total Part Build Rating 8 | . . . . . . 8 Part Studies Acquired . | . . . . . . . Parts Repaired . | . . . . . . . Time . | . . . . . . . Parts Recycled 1 | . . . 1 . . . Recycled Matter 184 | . . . 184 . . . Retrieved Matter 313 | . . . 313 . . . Retrieved Components . | . . . . . . . Parts Scanalyzed . | . . . . . . . Part Schematics Acquired . | . . . . . . . Parts Damaged . | . . . . . . . Bothacking | -11 -10 -9 -8 -7 -7 -7 ------------ Run | Yrd Mat Mat Mat Fac Was Fac Used RIF Installer . | . . . . . . . Robots Hacked 2 | . . 1 1 . . . Non-combat 1 | . . 1 . . . . Combat 1 | . . . 1 . . . Robot Hacks Applied 2 | . . 1 1 . . . parse_system 1 | . . . 1 . . . no_distress 1 | . . 1 . . . . Relay Couplers Released . | . . . . . . . Fabnet Peak Effective % . | . . . . . . . Robots Rewired . | . . . . . . . Allies Hacked . | . . . . . . . Hacks Repelled . | . . . . . . . Allies | -11 -10 -9 -8 -7 -7 -7 -------- Run | Yrd Mat Mat Mat Fac Was Fac Total Allies . | . . . . . . . Largest Group . | . . . . . . . Highest-Rated Group . | . . . . . . . Highest-Rated Ally . | . . . . . . . Total Orders . | . . . . . . . Ally Attacks . | . . . . . . . Total Damage . | . . . . . . . Kills . | . . . . . . . Allies Corrupted . | . . . . . . . Allies Melted . | . . . . . . . Intel | -11 -10 -9 -8 -7 -7 -7 ------- Run | Yrd Mat Mat Mat Fac Was Fac Active Infowar (turns) 2406 | . . 1008 1034 188 176 . Terrain 2406 | . . 1008 1034 188 176 . ECM 159 | . . . . 1 158 . Robot Analysis Total . | . . . . . . . Derelict Logs Recovered . | . . . . . . . Drone Launches . | . . . . . . . Drone Recoveries . | . . . . . . . Exploration | -11 -10 -9 -8 -7 -7 -7 ------------- Run | Yrd Mat Mat Mat Fac Was Fac Turns Passed 3278 | 173 200 1214 1121 188 254 128 Spaces Moved 1294 | 93 150 384 294 104 220 49 Core 32 | 3 . 12 . . 12 5 Treads . | . . . . . . . Legs 669 | . 3 372 294 . . . Wheels 593 | 90 147 . . 104 208 44 Hover . | . . . . . . . Flight . | . . . . . . . Fastest Speed 50 | 50 80 120 195 115 50 50 Average Speed 176 | 79 94 230 268 115 103 96 Slowest Speed 650 | 80 120 650 330 115 115 100 Overloaded Moves . | . . . . . . . Propulsion Burnouts . | . . . . . . . Robots Hopped . | . . . . . . . Potential Cave-ins . | . . . . . . . Cave-ins Triggered 1 | . . . 1 . . . Exploration Rate (%) 25 | 5 34 29 26 3 80 3 Regions Visited 6 Branch Regions . Pre-discovered Areas . | . . . . . . . Known Exits Taken . | . . . . . . . Unknown Exits Taken 4 | 1 1 1 1 . . . Scrap Searched . | . . . . . . . Spaces Dug 15 | . . 9 6 . . . Terrain Destroyed 25 | . . 11 14 . . . Melee 10 | . . 4 6 . . . Projectile 7 | . . 7 . . . . AOE 8 | . . . 8 . . . Terrain Rammed . | . . . . . . . Walls Destroyed . | . . . . . . . Machines Disabled . | . . . . . . . Actions | -11 -10 -9 -8 -7 -7 -7 --------- Run | Yrd Mat Mat Mat Fac Was Fac Total 1955 | 139 182 606 554 134 239 101 Wait 321 | 1 2 121 174 . 8 15 Move 1290 | 92 149 383 294 104 219 49 Hop . | . . . . . . . Pick Up 52 | 10 5 13 12 4 5 3 Fast Attach 20 | 6 . 7 1 . 3 3 Attach 35 | 1 8 5 12 4 1 4 Detach . | . . . . . . . Swap 23 | . 1 8 10 3 1 . Drop 4 | 1 1 . 2 . . . Fire 175 | 28 16 56 27 19 2 27 Melee 29 | . . 13 16 . . . Ram . | . . . . . . . Kick 6 | . . . 6 . . . Crush . | . . . . . . . Escape Stasis . | . . . . . . . Rewire . | . . . . . . . Trap . | . . . . . . . Miscellaneous . | . . . . . . . Route ------- -11/Scrapyard -10/Materials -9/Materials -8/Materials -7/Factory -7/Waste -7/Factory History --------- Turn | Location | Event 8 | -11/Scrapyard | Discovered new exit (range 15) 174 | -11/Scrapyard | Entered Materials 302 | -10/Materials | Build established: Mutant 344 | -10/Materials | Core integrity fell below 50% 356 | -10/Materials | Discovered new exit (range 16) 369 | -10/Materials | Core integrity fell below 20% 374 | -10/Materials | Entered another Materials area 374 | -9/Materials | Evolved 2 slots: Power x2 399 | -9/Materials | Lost 11 parts (2p5n1u3w) 607 | -9/Materials | Lost 3 parts (1n1u1w) 628 | -9/Materials | Core integrity fell below 50% 642 | -9/Materials | Core integrity fell below 20% 1394 | -9/Materials | Discovered new exit (range 18) 1588 | -9/Materials | Entered another Materials area 1588 | -8/Materials | Evolved 2 slots: Utility x2 1707 | -8/Materials | Build established: Scavenger-Mutant 1968 | -8/Materials | Crushed by falling debris 2352 | -8/Materials | Build established: Mutant 2448 | -8/Materials | Lost 7 parts (2p1n2u2w) 2642 | -8/Materials | Discovered new exit (range 11) 2709 | -8/Materials | Entered Factory 2709 | -7/Factory | Evolved 2 slots: Utility x1, Weapon x1 2739 | -7/Factory | Lost 5 parts (2p2n1w) 2897 | -7/Factory | Sucked down chute 2897 | -7/Factory | Entered Waste 2971 | -7/Waste | Spotted C-40 Crusher 2982 | -7/Waste | Spotted C-40 Crusher 2998 | -7/Waste | Build established: Scavenger-Skirmisher 3025 | -7/Waste | Spotted C-40 Crusher 3034 | -7/Waste | Crushed by Compactor (1 part destroyed, 2 dropped) 3035 | -7/Waste | Crushed by Compactor (1 part destroyed, 2 dropped) 3061 | -7/Waste | Spotted C-40 Crusher 3062 | -7/Waste | Spotted C-40 Crusher 3070 | -7/Waste | Crushed by Compactor (1 part destroyed, 2 dropped) 3073 | -7/Waste | Crushed by Compactor (1 part destroyed, 1 dropped) 3076 | -7/Waste | Crushed by Compactor (1 part destroyed, 1 dropped) 3107 | -7/Waste | Lost 3 parts (1n1u1w) 3108 | -7/Waste | Spotted C-40 Crusher 3131 | -7/Waste | Discovered new exit (range 16) 3151 | -7/Waste | Entered Factory 3246 | -7/Factory | Core integrity fell below 50% 3259 | -7/Factory | Core integrity fell below 20% 3265 | -7/Factory | Fabricated EM Disruption Field? 3279 | -7/Factory | Destroyed by S-27 Virus with Autogun Last Messages --------------- 03233_ R-06 Scavenger collects Com. Wheel. 03235_ R-06 Scavenger destroyed. 03235_ U-05 Engineer works on Matter Pump. 03238_ Lgt. Ion Engine destroyed. 03238_ Acquired 173 matter. 03240_ Critical hit (Destroy). 03240_ Arm. Huge Wheel destroyed. 03242_ Acquired Com. Wheel. 03243_ Acquired Lgt. Ion Engine. 03246_ Acquired Com. Wheel. 03255_ Com. Wheel destroyed. 03256_ Lgt. Ion Engine destroyed. 03258_ Acquired Ion Cannon. 03264_ Com. Wheel destroyed. [Achievement: Just What I Needed] 03265_ >> FABRICATOR: Completed EM Disruption Field? 03265_ Destroyed VTOL Module. 03265_ Lgt. Nuclear Core melted. 03265_ S-27 Virus destroyed. 03267_ Sml. Matter Pod destroyed. Map ----- +----------------------------------------------------+ | ?????????????????????????????????????? | | ?????????????????????????????????????? | | ?????????????????????????????????????? | | ?????????????????????????????????????? | | ?????????????????????????????????????? | | ?????????????????????????????????????? | | ?????????????????????????????????????? | | ?????????????????????????????????????? | | ?????????????????????????????????????? | | ?????????????????????????????????????? | | ?????????????????????????????????????? | | ????????? ??????? ???????????????????? | | ????????# ??????? ?????? ??????????? | | ????????# ?????? "?????? ???????? | | ????????# """""" "????? ???????? | | ????????# """""" ""???? ???????? | | ????????# """""" """??? ????????? | | ????????# ??? ?????????? | | ????????# """""" #?????????? | | ????????# """""" #?????????? | | ????????# """""" #?????????? | | ????????# """""" #?????????? | | ????????# #?????????? | | ????????# """ #?????????? | | ????????# != """ +?????????? | | ????????# !@ """ #?????????? | | ????????# ! % #?????????? | | ????????# ss ! #?????????? | | ????????# s #?????????? | | ????????############ #?????????? | | ???????????????????# #?????????? | | ???????????????????# #?????????? | | ???????????????????# #?????????? | | ???????????????????# #?????????? | | ???????????""??????# #?????????? | | ???????????? ????# ######????? | | ????????????"" ???# #????? | | ????????????"" ?# ##### | | ???????????""" # | | ???????????""" ! + | | ???????? # ^ | | ???????? ?# """ ""^ | | ????????############ """ "^ | | ????????????# """ ^ | | ????????????# " F" [ | | ????????????# """" | | ????????????# | | ????????????# | | ????????????# #### ######## | | ??????????### #??? #??????? | +----------------------------------------------------+ Best States ------------- Heat Dissipation 34 Energy Generation 28 Energy Capacity 595 Matter Stores 309 Matter Capacity 350 Sight Range 16 Terrain Scan Range 16 Terrain Scan Density 85 ECM Strength 1 EM Shielding 3 Armor Coverage 150 Evasion (%) 55 Offensive Hacking 10 Item Schematics ----------------- None Robot Schematics ------------------ None Fabricated ------------ EM Disruption Field | x2 | -7/Factory | Preloaded Repaired ---------- Nothing Studied --------- None Alien Tech Used ----------------- None Achievements -------------- Close Call Just What I Needed Part-time Excavator Unlikely Earthworm Challenges ------------ None Game ------ Seed ArmageddonThermicProtomatter Manual? 0 Play Time 01:29:10 Cumulative 14.6 hours Start 2026.01.18 @ 19:43:27 End 2026.01.18 @ 21:34:26 Sessions 1 Manual Loads 0 Difficulty Rogue Special Mode None Game No. 9 Rogue 9 Adventurer 0 Explorer 0 Win Type - Total 0 Types 0/0/0/0/0/0/0/0/0/0 Lore% 1 Gallery% 12 Achievement% 9 Wizard Run 0 Options --------- Layout 0 ASCII 0 Keyboard 1 Movement Vi Keybinds 0 Fullscreen 1 Font 14/SmallcapsGlow Map View 72x54 Zoom Use 0% Tactical HUD 1 Map Filters NONE Filters NONE Steam 0 RUN: 3395b08d-7bfc-4bb6-b498-c14e4330ebc9